fUSD/lending_fUSD_20260202
["ID","MTS","AMOUNT","RATE_DAILY","PERIOD"]
[404267749,1770017448776,-868.9,0.00016602,2]
[404267750,1770017448786,-233.51889341,0.00016607,2]
[404267751,1770017448795,-233.51889341,0.00016607,2]
[404267752,1770017448805,-194.72792766,0.00016607,2]
[404267753,1770017448815,-1592.87721993,0.00016607,2]
[404267754,1770017448835,-277.94807481,0.00016607,2]
[404267755,1770017448844,-195.13,0.00016712,2]
[404267756,1770017448854,-152.0,0.00016715,3]
[404267757,1770017448863,-163.0,0.0001672,2]
[404267758,1770017448873,-839.0,0.0001672,2]
[404267759,1770017448883,-839.0,0.0001672,2]
[404267760,1770017448893,-163.0,0.0001672,2]
[404267761,1770017448902,-163.0,0.0001672,2]
[404267762,1770017448912,-163.0,0.0001672,2]
[404267763,1770017448922,-305.66548204,0.00016733,2]
[404267764,1770017448931,-500.0,0.00016868,2]
[404267765,1770017448940,-989.28,0.00016876,2]
[404267766,1770017448950,-151.59,0.00016892,2]
[404267767,1770017448959,-10091.57601831,0.00016937,2]
[404267768,1770017448969,-160.02702936,0.00016965,2]
[404267769,1770017448978,-773.23,0.00016968,2]
[404267770,1770017448988,-779.65372,0.00017,2]
[404267771,1770017448998,-2205.73614126,0.00017,3]
[404267772,1770017449008,-157726.06092768,0.00017,2]
[404267773,1770017449017,-300.0,0.00017,2]
[404267774,1770017449027,-328.27626752,0.00017,7]
[404267775,1770017449038,-163.0,0.0001704,2]
[404267776,1770017449047,-163.0,0.0001704,2]
[404267777,1770017449056,-839.0,0.0001704,2]
[404267778,1770017449066,-163.0,0.0001704,2]
[404267779,1770017449075,-163.0,0.0001704,2]
[404267780,1770017449085,-158.77,0.00017066,2]
[404267781,1770017449095,-1899.6725397,0.00017078,2]
[404267782,1770017449104,-2777.47,0.00017094,2]
[404267783,1770017449114,-1500.0,0.000171,2]
[404267784,1770017449124,-2128.18837233,0.00017116,2]
[404267785,1770017449133,-1474.64879752,0.00017116,2]
[404267786,1770017449143,-1756.98671009,0.00017116,2]
[404267787,1770017449152,-1988.36339388,0.00017116,2]
[404267788,1770017449162,-1008.230722,0.00017116,2]
[404267789,1770017449171,-2000.0,0.00017116,2]
[404267790,1770017449181,-1006.20015718,0.00017116,2]
[404267791,1770017449191,-1143.18674336,0.00017116,2]
[404267792,1770017449201,-2000.0,0.00017116,2]
[404267793,1770017449211,-2000.0,0.00017116,2]
[404267794,1770017449220,-315.28060531,0.00017116,2]
[404267795,1770017449230,-2000.0,0.00017116,2]
[404267796,1770017449240,-2000.0,0.00017116,2]
[404267797,1770017449249,-1189.68040771,0.00017116,2]
[404267798,1770017449262,-2000.0,0.00017116,2]
[404267799,1770017449271,-17018.590968,0.00017124,2]
[404267800,1770017449281,-242.15909246,0.00017155,2]
[404267801,1770017449290,-260.62456749,0.00017155,2]
[404267802,1770017449300,-201.93286099,0.00017155,2]
[404267803,1770017449310,-1651.81367706,0.00017155,2]
[404267804,1770017449319,-728.464,0.00017184,2]
[404267805,1770017449329,-3253.0,0.00017184,2]
[404267806,1770017449338,-162.264,0.00017184,2]
[404267807,1770017449348,-773.47,0.00017242,2]
[404267808,1770017449358,-1000.0,0.0001726,2]
[404267809,1770017449368,-1000.0,0.00017299,2]
[404267810,1770017449377,-2835.0,0.0001736,2]
[404267811,1770017449387,-163.0,0.0001736,2]
[404267812,1770017449396,-1500.0,0.000174,2]
[404267813,1770017449405,-262.30733313,0.0001745,2]
[404267814,1770017449415,-692.23320224,0.0001745,2]
[404267815,1770017449425,-1221.18142178,0.0001745,2]
[404267816,1770017449435,-1826.81437292,0.0001745,2]
[404267817,1770017449446,-2471.7429,0.0001745,2]
[404267818,1770017449456,-231.713548,0.00017489,2]
[404267819,1770017449465,-13442.50995431,0.000175,2]
[404267820,1770017449475,-1000.0,0.00017534,2]
[404267821,1770017449485,-500.0,0.00017567,2]
[404267822,1770017449495,-500.0,0.00017567,2]
[404267823,1770017449508,-500.0,0.00017567,2]
[404267824,1770017449519,-500.0,0.00017567,2]
[404267825,1770017449528,-1000000.0,0.00017568,2]
[404267826,1770017449538,-4544.0,0.00017589,2]
[404267827,1770017449548,-231.71354799,0.00017592,2]
[404267828,1770017449557,-3012.2001319,0.0001764,2]
[404267829,1770017449567,-160.02702936,0.00017643,2]
[404267830,1770017449576,-1002.03881526,0.00017664,2]
[404267831,1770017449585,-502.76473862,0.00017664,2]
[404267832,1770017449594,-947.23523297,0.00017664,2]
[404267833,1770017449604,-1002.53462592,0.00017664,2]
[404267834,1770017449614,-1216.63993214,0.00017664,2]
[404267835,1770017449624,-1504.86417643,0.00017664,2]
[404267836,1770017449633,-500.0,0.00017671,2]
[404267837,1770017449643,-152.0,0.00017679,4]
[404267838,1770017449653,-163.0,0.0001768,2]
[404267839,1770017449663,-835.0,0.0001768,2]
[404267840,1770017449673,-163.0,0.0001768,2]
[404267841,1770017449682,-5306.0,0.00017681,2]
[404267842,1770017449691,-231.71354799,0.00017695,2]
[404267843,1770017449702,-4544.0,0.00017696,2]
[404267844,1770017449712,-2844.0,0.000177,2]
[404267845,1770017449722,-346.92554585,0.00017701,2]
[404267846,1770017449731,-747.8093786,0.00017702,2]
[404267847,1770017449741,-599.60298507,0.00017702,2]
[404267848,1770017449751,-251.11897888,0.00017703,2]
[404267849,1770017449761,-209.40437684,0.00017703,2]
[404267850,1770017449771,-1712.93078312,0.00017703,2]
[404267851,1770017449781,-25000.0,0.00017724,3]
[404267852,1770017449792,-500.0,0.00017725,2]
[404267853,1770017449801,-25000.0,0.00017733,3]
[404267854,1770017449812,-25000.0,0.00017742,3]
[404267855,1770017449824,-150.0,0.00017749,2]
[404267856,1770017449834,-25000.0,0.0001775,3]
[404267857,1770017449843,-25000.0,0.00017759,3]
[404267858,1770017449853,-2894.0,0.00017767,2]
[404267859,1770017449864,-25000.0,0.00017768,3]
[404267860,1770017449873,-17018.590968,0.0001777,2]
[404267861,1770017449883,-25000.0,0.00017777,3]
[404267862,1770017449894,-25000.0,0.00017786,3]
[404267863,1770017449904,-161.033,0.00017788,2]
[404267864,1770017449914,-1278.693,0.00017788,2]
[404267865,1770017449924,-1205.0,0.00017788,2]
[404267866,1770017449934,-925.751,0.00017788,2]
[404267867,1770017449944,-154.89725075,0.00017793,2]
[404267868,1770017449954,-500.0,0.00017794,2]
[404267869,1770017449964,-25000.0,0.00017794,3]
[404267870,1770017449974,-231.71354799,0.00017797,2]
[404267871,1770017449984,-25000.0,0.00017803,3]
[404267872,1770017449995,-500.0,0.00017808,2]
[404267873,1770017450005,-1000.0,0.00017808,2]
[404267874,1770017450015,-25000.0,0.00017812,3]
[404267875,1770017450025,-1000.0,0.00017816,2]
[404267876,1770017450036,-2000.0,0.0001782,2]
[404267877,1770017450046,-2000.0,0.0001782,2]
[404267878,1770017450056,-2000.0,0.0001782,2]
[404267879,1770017450066,-2000.0,0.0001782,2]
[404267880,1770017450076,-25000.0,0.00017821,3]
[404267881,1770017450086,-25000.0,0.0001783,3]
[404267882,1770017450096,-877.65513559,0.0001783,2]
[404267883,1770017450106,-25000.0,0.00017838,3]
[404267884,1770017450115,-25000.0,0.00017847,3]
[404267885,1770017450125,-200.0,0.00017855,2]
[404267886,1770017450135,-25000.0,0.00017856,3]
[404267887,1770017450145,-200.0,0.00017856,2]
[404267888,1770017450156,-200.0,0.00017856,2]
[404267889,1770017450166,-2894.0,0.00017856,2]
[404267890,1770017450176,-4544.0,0.00017859,2]
[404267891,1770017450186,-500.0,0.00017863,2]
[404267892,1770017450196,-500.0,0.00017863,2]
[404267893,1770017450206,-25000.0,0.00017865,3]
[404267894,1770017450216,-278.0,0.0001787,2]
[404267895,1770017450226,-500.0,0.00017873,2]
[404267896,1770017450236,-25000.0,0.00017874,3]
[404267897,1770017450246,-25000.0,0.00017882,3]
[404267898,1770017450258,-279.5,0.00017888,2]
[404267899,1770017450268,-25000.0,0.00017891,3]
[404267900,1770017450279,-25000.0,0.000179,3]
[404267901,1770017450289,-10139.4576,0.000179,2]
[404267902,1770017450299,-6799.4482,0.000179,2]
[404267903,1770017450310,-10000.0,0.000179,2]
[404267904,1770017450320,-502.14,0.000179,3]
[404267905,1770017450329,-231.71354799,0.000179,2]
[404267906,1770017450339,-370.87018135,0.000179,2]
[404267907,1770017450349,-1777.28427788,0.000179,3]
[404267908,1770017450358,-1431.08109019,0.000179,2]
[404267909,1770017450368,-260.51881717,0.000179,2]
[404267910,1770017450378,-12764.0,0.000179,2]
[404267911,1770017450388,-500.0,0.00017918,2]
[404267912,1770017450398,-279.5,0.00017929,2]
[404267913,1770017450408,-1000.0,0.00017966,2]
[404267914,1770017450418,-506.1208044,0.00017972,2]
[404267915,1770017450428,-151.59,0.00017987,2]
[404267916,1770017450438,-248.17115062,0.00017999,2]
[404267917,1770017450448,-300.0,0.00017999,2]
[404267918,1770017450457,-300.0,0.00017999,2]
[404267919,1770017450467,-300.0,0.00017999,2]
[404267920,1770017450476,-300.0,0.00017999,2]
[404267921,1770017450486,-666.0,0.00017999,2]
[404267922,1770017450496,-300.0,0.00017999,2]
[404267923,1770017450505,-500.0,0.00017999,2]
[404267924,1770017450516,-233.22890067,0.00017999,2]
[404267925,1770017450526,-1899016.8401656,0.00018,2]
[404267926,1770017451074,-15650.06259754,0.00017051,2]
[404267927,1770017451084,-60342.50890077,0.00018,2]
[404267928,1770017451096,-765.54,0.00018,2]
[404267929,1770017451251,-501.30874568,0.00012561,2]
[404267930,1770017451262,-718.35510813,0.00018,2]
[404267931,1770017451303,366.13061322,0.00011959,2]
[404267932,1770017451331,-264.49836615,0.00018,2]
[404267933,1770017451625,366.13061322,0.00011959,2]
[404267935,1770017476452,10000.01,0.00011917,2]
[404267936,1770017476478,10000.01,0.00011917,2]
[404267937,1770017476751,10000.01,0.00011917,2]
[404267938,1770017476780,10000.01,0.00011917,2]
[404267939,1770017476806,10000.01,0.00011917,2]
[404267940,1770017476835,10000.01,0.00011917,2]
[404267941,1770017476860,10000.01,0.00011917,2]
[404267942,1770017476886,10000.01,0.00011917,2]
[404267943,1770017476912,10000.01,0.00011917,2]
[404267944,1770017476937,10000.01,0.00011917,2]
[404267945,1770017487664,-7979.26026979,0.00011917,2]
[404267946,1770017487772,-10000.01,0.00011917,2]
[404267947,1770017487892,-10000.01,0.00011917,2]
[404267948,1770017488036,-10000.01,0.00011917,2]
[404267949,1770017493195,-10000.01,0.00011917,2]
[404267950,1770017496107,-10000.01,0.00011917,2]
[404267951,1770017496262,-10000.01,0.00011917,2]
[404267952,1770017496346,-10000.01,0.00011917,2]
[404267953,1770017496472,-10000.01,0.00011917,2]
[404267954,1770017496866,-10000.01,0.00011917,2]
[404267955,1770017505184,-10000.01,0.00011917,2]
[404267956,1770017505337,-10000.01,0.00011917,2]
[404267957,1770017505450,-10000.01,0.00011917,2]
[404267958,1770017505596,-10000.01,0.00011917,2]
[404267959,1770017505722,-10000.01,0.00011917,2]
[404267960,1770017508425,-10000.01,0.00011917,2]
[404267961,1770017508657,-10000.01,0.00011917,2]
[404267962,1770017508810,-10000.01,0.00011917,2]
[404267963,1770017508978,-10000.01,0.00011917,2]
[404267964,1770017509096,-10000.01,0.00011917,2]
[404267965,1770017509215,-10000.01,0.00011917,2]
[404267966,1770017511302,-10000.01,0.00011917,2]
[404267967,1770017511416,-10000.01,0.00011917,2]
[404267968,1770017511527,-10000.01,0.00011917,2]
[404267969,1770017511651,-10000.01,0.00011917,2]
[404267970,1770017511785,-10000.01,0.00011917,2]
[404267971,1770017511898,-10000.01,0.00011917,2]
[404267972,1770017512009,-10000.01,0.00011917,2]
[404267973,1770017512144,-10000.01,0.00011917,2]
[404267974,1770017512584,-10000.01,0.00011917,2]
[404267975,1770017512604,-10000.01,0.00011917,2]
[404267976,1770017517460,-263.406953,0.00011857,2]
[404267994,1770017745986,1277.075703,0.00011612,2]
[404267996,1770017881317,-250.0,0.00011671,2]
[404267997,1770017896437,-295.36,0.000117,2]
[404267998,1770017911777,-594.29692096,0.00011716,2]
[404267999,1770017928115,-502.19943206,0.00011729,2]
[404268005,1770018066946,-246.0,0.00011729,2]
[404268011,1770018082186,-151.59099675,0.00011758,2]
[404268012,1770018098104,-594.29692094,0.00011763,2]
[404268013,1770018112743,-594.29692094,0.0001181,2]
[404268014,1770018128074,-1200.0,0.00011816,2]
[404268015,1770018128116,-300.0,0.00011816,2]
[404268016,1770018128151,-150.0,0.00011816,2]
[404268017,1770018143403,-237.2858,0.00011817,2]
[404268018,1770018143433,-1302.6502,0.00011817,2]
[404268019,1770018158640,-196.82981052,0.00011817,2]
[404268020,1770018158682,-9606.35037896,0.00011817,2]
[404268021,1770018158792,-4134.81842558,0.00011817,2]
[404268022,1770018158819,-1730.37314884,0.00011817,2]
[404268023,1770018158946,-10000.01,0.00011817,2]
[404268024,1770018159136,-2069.95406581,0.00011817,2]
[404268025,1770018159168,-5860.10186838,0.00011817,2]
[404268026,1770018159240,-1277.577,0.00011817,2]
[404268027,1770018159271,-185.775,0.00011817,2]
[404268028,1770018159303,-176.37733019,0.00011817,2]
[404268029,1770018159333,-543.87085506,0.00011817,2]
[404268030,1770018161810,5632.8096295,0.00011717,2]
[404268031,1770018161839,10000.01,0.00011717,2]
[404268032,1770018161868,10000.01,0.00011717,2]
[404268033,1770018161897,10000.01,0.00011717,2]
[404268034,1770018161925,10000.01,0.00011717,2]
[404268035,1770018161954,10000.01,0.00011717,2]
[404268036,1770018168028,-4367.2003705,0.00011717,2]
[404268037,1770018168132,-10000.01,0.00011717,2]
[404268038,1770018168244,-10000.01,0.00011717,2]
[404268039,1770018168366,-10000.01,0.00011717,2]
[404268040,1770018168481,-10000.01,0.00011717,2]
[404268041,1770018168610,-10000.01,0.00011717,2]
[404268042,1770018168801,-10000.01,0.00011717,2]
[404268043,1770018168923,-10000.01,0.00011717,2]
[404268044,1770018171070,-10000.01,0.00011717,2]
[404268045,1770018171308,-10000.01,0.00011717,2]
[404268046,1770018179979,-10000.01,0.00011717,2]
[404268047,1770018180412,-10000.01,0.00011717,2]
[404268048,1770018180494,-10000.01,0.00011717,2]
[404268049,1770018180541,-10000.01,0.00011717,2]
[404268050,1770018180576,-10000.01,0.00011717,2]
[404268051,1770018180608,-10000.01,0.00011717,2]
[404268052,1770018180741,-10000.01,0.00011717,2]
[404268053,1770018180849,-10000.01,0.00011717,2]
[404268054,1770018186215,-4940.897264,0.00011658,2]
[404268055,1770018186242,-118.215472,0.00011658,2]
[404268056,1770018186507,-300.0,0.00011716,2]
[404268057,1770018186544,-9400.01,0.00011717,2]
[404268058,1770018186625,-10000.01,0.00011717,2]
[404268059,1770018186748,-10000.01,0.00011717,2]
[404268060,1770018186881,-10000.01,0.00011717,2]
[404268061,1770018186991,-10000.01,0.00011717,2]
[404268062,1770018187120,-10000.01,0.00011717,2]
[404268063,1770018187297,-10000.01,0.00011717,2]
[404268064,1770018187585,168.71,9.454e-05,2]
[404268065,1770018187798,168.71,0.0001103,2]
[404268066,1770018189146,-10000.01,0.00011717,2]
[404268067,1770018189254,-10000.01,0.00011717,2]
[404268068,1770018189375,-10000.01,0.00011717,2]
[404268069,1770018189541,-10000.01,0.00011717,2]
[404268070,1770018189676,-10000.01,0.00011717,2]
[404268071,1770018189816,-10000.01,0.00011717,2]
[404268072,1770018189940,-10000.01,0.00011717,2]
[404268073,1770018190060,-10000.01,0.00011717,2]
[404268074,1770018190195,-10000.01,0.00011717,2]
[404268075,1770018190348,-10000.01,0.00011717,2]
[404268076,1770018364543,1600.0,0.0001104,2]
[404268077,1770018367629,-151.49,0.00011253,2]
[404268078,1770018367653,-758.51,0.00011617,2]
[404268079,1770018428310,166.66,0.00010959,2]
[404268256,1770018632012,-166.66,0.00011092,2]
[404268257,1770018632023,-184.8699975,0.00011092,2]
[404268258,1770018632101,-56.1300025,0.00011092,2]
[404268259,1770018632112,-166.66,0.00011224,2]
[404268260,1770018632122,-166.66,0.00011357,2]
[404268261,1770018632132,-166.66,0.00011489,2]
[404268262,1770018632142,-159.68741746,0.00011517,2]
[404268263,1770018632152,-534.85967689,0.00011517,2]
[404268264,1770018632161,-534.85967689,0.00011517,2]
[404268265,1770018632171,-2751.70987103,0.00011517,2]
[404268266,1770018632180,-159.68741745,0.00011557,2]
[404268267,1770018632194,-159.68741745,0.00011597,2]
[404268268,1770018632204,-150.0,0.00011616,2]
[404268269,1770018632214,-300.0,0.00011616,2]
[404268270,1770018632223,-1200.0,0.00011616,2]
[404268271,1770018632235,-300.0,0.00011616,2]
[404268272,1770018632245,-12374.09852033,0.00011617,2]
[404268275,1770018632266,-29212.37607273,0.00011617,2]
[404268281,1770018638370,-150.0,0.00011543,2]
[404268282,1770018638382,-150.0,0.00011543,2]
[404268283,1770018638393,-150.0,0.00011598,2]
[404268284,1770018638404,-8218.5334601,0.00011617,2]
[404268285,1770018638438,-88852.0,0.00011617,2]
[404268286,1770018638490,-141.7999999,0.00011617,2]
[404268287,1770018638502,-949.73515226,0.00011617,2]
[404268290,1770018640156,-562.95000008,0.00011617,2]
[404268291,1770018640243,-2691.6,0.00011617,2]
[404268292,1770018640255,-13828.5375693,0.00011617,2]
[404268293,1770018640267,-3069.42912442,0.00011617,2]
[404268294,1770018640467,-840098.94010088,0.00011617,2]
[404268295,1770018640477,-13924.38775806,0.00011617,2]
[404268296,1770018640486,-17614.43260962,0.00011617,2]
[404268297,1770018640495,-166.66,0.00011622,2]
[404268298,1770018640505,-150.40929257,0.00011642,2]
[404268299,1770018640515,-500.0,0.00011642,2]
[404268300,1770018640524,-150.0,0.00011642,2]
[404268301,1770018640533,-500.0,0.00011642,2]
[404268302,1770018640545,-150.0,0.00011642,2]
[404268303,1770018640557,-500.0,0.00011642,2]
[404268304,1770018640566,-500.0,0.00011642,2]
[404268305,1770018640575,-150.0,0.00011642,2]
[404268306,1770018640585,-150.0,0.00011642,2]
[404268308,1770018640594,-500.0,0.00011642,2]
[404268310,1770018640604,-150.0,0.00011642,2]
[404268311,1770018640613,-500.0,0.00011642,2]
[404268312,1770018640623,-500.0,0.00011642,2]
[404268313,1770018640632,-152.39087668,0.00011642,2]
[404268314,1770018640641,-500.0,0.00011642,2]
[404268315,1770018640651,-500.0,0.00011642,2]
[404268316,1770018640660,-500.0,0.00011642,2]
[404268317,1770018640669,-150.0,0.00011642,2]
[404268318,1770018640678,-500.0,0.00011642,2]
[404268319,1770018640688,-500.0,0.00011642,2]
[404268320,1770018640697,-260.67628725,0.00011652,2]
[404268321,1770018640707,-485.0,0.00011683,2]
[404268322,1770018640717,-16502.96670274,0.00011687,2]
[404268323,1770018640726,-500.0,0.00011697,2]
[404268324,1770018640736,-500.0,0.00011697,2]
[404268325,1770018640745,-150.0,0.00011697,2]
[404268326,1770018640755,-500.0,0.00011697,2]
[404268327,1770018640764,-150.0,0.00011697,2]
[404268328,1770018640774,-500.0,0.00011697,2]
[404268329,1770018640783,-500.0,0.00011697,2]
[404268330,1770018640794,-500.0,0.00011697,2]
[404268331,1770018640804,-150.0,0.00011697,2]
[404268332,1770018640814,-500.0,0.00011697,2]
[404268333,1770018640823,-500.0,0.00011697,2]
[404268334,1770018640833,-500.0,0.00011697,2]
[404268335,1770018640843,-501.86439171,0.00011697,2]
[404268336,1770018640853,-504.83440669,0.00011697,2]
[404268337,1770018640862,-150.54573415,0.00011697,2]
[404268338,1770018640872,-500.0,0.00011697,2]
[404268339,1770018640882,-500.30543777,0.00011697,2]
[404268340,1770018640892,-923.0,0.00011706,2]
[404268341,1770018640901,-217.08812203,0.00011707,2]
[404268342,1770018640910,-204.75117701,0.00011707,2]
[404268343,1770018640919,-151.0,0.00011717,2]
[404268344,1770018640940,-151.0,0.00011717,2]
[404268345,1770018640952,-151.0,0.00011717,2]
[404268346,1770018640962,-151.0,0.00011717,2]
[404268347,1770018640972,-151.0,0.00011717,2]
[404268348,1770018640982,-151.0,0.00011717,2]
[404268349,1770018640992,-500.0,0.00011717,2]
[404268350,1770018641002,-151.0,0.00011717,2]
[404268351,1770018641012,-500.0,0.00011717,2]
[404268352,1770018641022,-151.0,0.00011717,2]
[404268353,1770018641032,-500.0,0.00011717,2]
[404268354,1770018641044,-151.0,0.00011717,2]
[404268355,1770018641054,-500.0,0.00011717,2]
[404268356,1770018641064,-387.4955611,0.00011717,2]
[404268357,1770018641075,-151.0,0.00011717,2]
[404268358,1770018641085,-151.0,0.00011717,2]
[404268359,1770018641095,-2500599.6,0.00011717,2]
[404268360,1770018641105,-429.39178028,0.00011717,2]
[404268361,1770018641115,-1912.0,0.0001173,2]
[404268362,1770018641125,-500.0,0.00011752,2]
[404268363,1770018641136,-150.0,0.00011752,2]
[404268364,1770018641146,-500.0,0.00011752,2]
[404268365,1770018641155,-150.0,0.00011752,2]
[404268366,1770018641166,-500.0,0.00011752,2]
[404268367,1770018641176,-500.0,0.00011752,2]
[404268368,1770018641187,-512.2574055,0.00011752,2]
[404268369,1770018641200,-150.27829964,0.00011752,2]
[404268370,1770018641210,-500.0,0.00011752,2]
[404268371,1770018641220,-500.0,0.00011752,2]
[404268372,1770018641230,-477.85631038,0.00011752,2]
[404268373,1770018641243,-500.0,0.00011752,2]
[404268374,1770018641253,-1898.0,0.00011753,2]
[404268375,1770018641263,-169.0,0.00011765,2]
[404268376,1770018641273,-429.0,0.00011782,2]
[404268377,1770018641283,-429.12526286,0.00011789,2]
[404268378,1770018641301,-1318.0,0.00011805,2]
[404268379,1770018641311,-500.0,0.00011806,2]
[404268380,1770018641322,-150.0,0.00011806,2]
[404268381,1770018641332,-500.0,0.00011806,2]
[404268382,1770018641342,-200.0,0.00011806,2]
[404268383,1770018641352,-500.0,0.00011806,2]
[404268384,1770018641363,-500.0,0.00011806,2]
[404268385,1770018641373,-500.0,0.00011806,2]
[404268386,1770018641383,-248.75689772,0.00011806,2]
[404268387,1770018641393,-500.0,0.00011806,2]
[404268388,1770018641403,-70065.6165,0.00011816,2]
[404268389,1770018641414,-3232.7725,0.00011816,2]
[404268390,1770018641424,-9999.99,0.00011816,2]
[404268391,1770018641435,-1229.84,0.00011816,2]
[404268392,1770018641446,-14009.2,0.00011816,2]
[404268393,1770018641456,-190.6336,0.00011816,2]
[404268394,1770018641466,-1000.0,0.00011816,2]
[404268395,1770018641477,-9999.99,0.00011817,2]
[404268396,1770018641487,-4999.99,0.00011817,2]
[404268397,1770018641497,-499.99,0.00011817,2]
[404268398,1770018641507,-464.87,0.00011817,2]
[404268399,1770018641518,-9999.99,0.00011817,2]
[404268400,1770018641528,-176.37733019,0.00011817,2]
[404268401,1770018641539,-5809.64110211,0.00011817,2]
[404268402,1770018641551,-299.99,0.00011861,2]
[404268403,1770018641562,-9156.55,0.00011861,2]
[404268404,1770018641572,-9999.99,0.00011861,2]
[404268405,1770018641582,-999.99,0.00011861,2]
[404268406,1770018641592,-1182.49,0.00011861,2]
[404268407,1770018641602,-13849.27,0.00011861,2]
[404268408,1770018641612,-14610.22,0.00011861,2]
[404268409,1770018641623,-9999.99,0.00011861,2]
[404268410,1770018641633,-188772.95,0.00011861,2]
[404268411,1770018641643,-356.16390379,0.00011861,2]
[404268412,1770018641659,-200.0,0.00011861,2]
[404268413,1770018641669,-500.0,0.00011861,2]
[404268414,1770018641679,-500.0,0.00011861,2]
[404268415,1770018641689,-500.0,0.00011861,2]
[404268416,1770018641700,-500.0,0.00011861,2]
[404268417,1770018641709,-156.67226287,0.00011861,2]
[404268418,1770018641719,-923.0,0.00011883,2]
[404268419,1770018641730,-150.99,0.00011907,2]
[404268420,1770018641741,-9999.99,0.00011907,2]
[404268421,1770018641751,-150.99,0.00011907,2]
[404268422,1770018641761,-15416.23,0.00011907,2]
[404268423,1770018641771,-23633.88,0.00011907,2]
[404268424,1770018641782,-500.0,0.0001191,2]
[404268425,1770018641793,-200.0,0.0001191,2]
[404268426,1770018641803,-151.0,0.0001191,2]
[404268427,1770018641813,-151.0,0.0001191,2]
[404268428,1770018641823,-151.0,0.0001191,2]
[404268429,1770018641834,-151.0,0.0001191,2]
[404268430,1770018641844,-151.0,0.0001191,2]
[404268431,1770018641854,-151.0,0.0001191,2]
[404268432,1770018641864,-151.0,0.0001191,2]
[404268433,1770018641875,-223.13740117,0.0001191,2]
[404268434,1770018641884,-500.0,0.0001191,2]
[404268435,1770018641895,-500.0,0.0001191,2]
[404268436,1770018641904,-500.0,0.0001191,2]
[404268437,1770018641914,-500.0,0.0001191,2]
[404268438,1770018641924,-500.0,0.0001191,2]
[404268439,1770018641934,-500.0,0.0001191,2]
[404268440,1770018641946,-500.0,0.0001191,2]
[404268441,1770018641956,-200.0,0.0001191,2]
[404268442,1770018641967,-500.0,0.00011916,2]
[404268443,1770018641977,-500.0,0.00011916,2]
[404268444,1770018641991,-500.0,0.00011916,2]
[404268445,1770018642001,-500.0,0.00011916,2]
[404268446,1770018642012,-500.0,0.00011916,2]
[404268447,1770018642026,-202.11059769,0.00011916,2]
[404268448,1770018642038,-515.45334123,0.00011916,2]
[404268449,1770018642048,-199.20713996,0.00011916,2]
[404268450,1770018642058,-500.0,0.00011916,2]
[404268451,1770018642069,-500.0,0.00011916,2]
[404268452,1770018642088,-500.0,0.00011916,2]
[404268453,1770018642101,-500.0,0.00011916,2]
[404268454,1770018642121,-500.0,0.00011916,2]
[404268455,1770018642135,-500.0,0.00011916,2]
[404268456,1770018642145,-500.0,0.00011916,2]
[404268457,1770018642155,-500.0,0.00011916,2]
[404268458,1770018642165,-500.0,0.00011916,2]
[404268459,1770018642176,-188.34332361,0.00011916,2]
[404268460,1770018642186,-500.0,0.00011916,2]
[404268461,1770018642196,-500.0,0.00011916,2]
[404268462,1770018642209,-500.0,0.00011916,2]
[404268463,1770018642219,-500.0,0.00011916,2]
[404268464,1770018642229,-500.0,0.00011916,2]